[Event "Early-Titled-Tuesday-Blitz-August-29-2023"]
[Site "Chess.com"]
[Date "2023.08.29"]
[Round "9"]
[White "BrandonJacobson"]
[Black "Durarbayli"]
[Result "1/2-1/2"]
[WhiteElo "3011"]
[BlackElo "2923"]
[TimeControl "180+1"]
[EndTime "9:44:33 PDT"]
[Termination "Game drawn by repetition"]

1. d4 {[%clk 0:03:00.9]} 1... Nf6 {[%clk 0:02:59.3]} 2. c4 {[%clk 0:03:00.9]}
2... e6 {[%clk 0:02:59.9]} 3. Nf3 {[%clk 0:02:59.1]} 3... b6 {[%clk 0:03:00.1]}
4. g3 {[%clk 0:02:59.3]} 4... Ba6 {[%clk 0:02:58.1]} 5. Qc2 {[%clk 0:02:59.2]}
5... Bb7 {[%clk 0:02:57.7]} 6. Bg2 {[%clk 0:02:58.9]} 6... Bb4+ {[%clk
0:02:55.4]} 7. Bd2 {[%clk 0:02:57.2]} 7... Be4 {[%clk 0:02:53.5]} 8. Qd1 {[%clk
0:02:53.4]} 8... a5 {[%clk 0:02:52.7]} 9. O-O {[%clk 0:02:52.5]} 9... O-O {[%clk
0:02:52.7]} 10. a3 {[%clk 0:02:45.1]} 10... Bxd2 {[%clk 0:02:52.3]} 11. Nbxd2
{[%clk 0:02:46]} 11... Bb7 {[%clk 0:02:51.2]} 12. Qc2 {[%clk 0:02:46.4]} 12...
d6 {[%clk 0:02:48.5]} 13. e4 {[%clk 0:02:46.5]} 13... Nbd7 {[%clk 0:02:48.8]}
14. Rfe1 {[%clk 0:02:37.4]} 14... e5 {[%clk 0:02:48.2]} 15. Rad1 {[%clk
0:02:36.2]} 15... Qe7 {[%clk 0:02:44.9]} 16. Nb1 {[%clk 0:02:33.3]} 16... a4
{[%clk 0:02:35.6]} 17. Nc3 {[%clk 0:02:32.1]} 17... exd4 {[%clk 0:02:36]} 18.
Nxd4 {[%clk 0:02:32.1]} 18... Nc5 {[%clk 0:02:36.6]} 19. Nf5 {[%clk 0:02:09.1]}
19... Qe6 {[%clk 0:02:23.5]} 20. Nb5 {[%clk 0:01:26.2]} 20... Rfc8 {[%clk
0:02:07.5]} 21. f3 {[%clk 0:01:25.5]} 21... Ba6 {[%clk 0:01:40.1]} 22. Qc3
{[%clk 0:01:17.4]} 22... Bxb5 {[%clk 0:01:37.9]} 23. cxb5 {[%clk 0:01:18.3]}
23... Re8 {[%clk 0:01:29.9]} 24. f4 {[%clk 0:01:09.6]} 24... Rad8 {[%clk
0:01:26.5]} 25. Nd4 {[%clk 0:01:04.2]} 25... Qc8 {[%clk 0:01:22.3]} 26. Nc6
{[%clk 0:01:04.1]} 26... Rd7 {[%clk 0:01:22.6]} 27. e5 {[%clk 0:00:50.9]} 27...
dxe5 {[%clk 0:01:20.4]} 28. fxe5 {[%clk 0:00:51.8]} 28... Rxd1 {[%clk
0:01:17.4]} 29. Rxd1 {[%clk 0:00:51.9]} 29... Nfe4 {[%clk 0:00:47.9]} 30. Qe3
{[%clk 0:00:39.2]} 30... Qg4 {[%clk 0:00:48.1]} 31. Rd4 {[%clk 0:00:34.9]} 31...
Qg5 {[%clk 0:00:46.2]} 32. Rxe4 {[%clk 0:00:20.3]} 32... Nxe4 {[%clk 0:00:46.3]}
33. Qxe4 {[%clk 0:00:21.2]} 33... Qc1+ {[%clk 0:00:46.5]} 34. Bf1 {[%clk
0:00:21.8]} 34... Qxb2 {[%clk 0:00:45.6]} 35. Qxa4 {[%clk 0:00:21.8]} 35... h5
{[%clk 0:00:31.9]} 36. Qb4 {[%clk 0:00:21.9]} 36... Qxb4 {[%clk 0:00:14.9]} 37.
axb4 {[%clk 0:00:22]} 37... Kf8 {[%clk 0:00:15.4]} 38. Kf2 {[%clk 0:00:21.6]}
38... Ra8 {[%clk 0:00:15.9]} 39. Bc4 {[%clk 0:00:20.6]} 39... Ra1 {[%clk
0:00:14.4]} 40. Kf3 {[%clk 0:00:17.5]} 40... Rc1 {[%clk 0:00:12.2]} 41. Be2
{[%clk 0:00:16.8]} 41... Rc2 {[%clk 0:00:09.6]} 42. Ke3 {[%clk 0:00:16.9]} 42...
g6 {[%clk 0:00:09]} 43. h4 {[%clk 0:00:11.1]} 43... Rc3+ {[%clk 0:00:08.4]} 44.
Bd3 {[%clk 0:00:10.9]} 44... Rc1 {[%clk 0:00:08.5]} 45. Kf2 {[%clk 0:00:08.9]}
45... Rc3 {[%clk 0:00:07.3]} 46. Ke2 {[%clk 0:00:09.4]} 46... Rb3 {[%clk
0:00:06.7]} 47. Kd2 {[%clk 0:00:06.6]} 47... Ra3 {[%clk 0:00:06.8]} 48. Nd4
{[%clk 0:00:05.1]} 48... Ra2+ {[%clk 0:00:04.8]} 49. Ke3 {[%clk 0:00:05.1]}
49... Ke7 {[%clk 0:00:04.4]} 50. e6 {[%clk 0:00:04.7]} 50... f5 {[%clk
0:00:04.3]} 51. Kf4 {[%clk 0:00:04]} 51... Kf6 {[%clk 0:00:03]} 52. Ke3 {[%clk
0:00:03.8]} 52... Rb2 {[%clk 0:00:02.8]} 53. Nc6 {[%clk 0:00:03.7]} 53... Kxe6
{[%clk 0:00:02.9]} 54. Bc4+ {[%clk 0:00:04.3]} 54... Kf6 {[%clk 0:00:03]} 55.
Bd5 {[%clk 0:00:04.9]} 55... Rb1 {[%clk 0:00:02.2]} 56. Kf4 {[%clk 0:00:03.8]}
56... Rf1+ {[%clk 0:00:02.2]} 57. Ke3 {[%clk 0:00:04]} 57... Rb1 {[%clk
0:00:03.1]} 58. Bf3 {[%clk 0:00:03.7]} 58... Rb3+ {[%clk 0:00:03.2]} 59. Kf2
{[%clk 0:00:03.7]} 59... Rb2+ {[%clk 0:00:03.6]} 60. Ke3 {[%clk 0:00:04.3]}
60... Rb3+ {[%clk 0:00:04]} 61. Kf4 {[%clk 0:00:05]} 61... Rb1 {[%clk 0:00:04]}
62. Be2 {[%clk 0:00:04.3]} 62... Rb2 {[%clk 0:00:03.8]} 63. Ke3 {[%clk
0:00:03.7]} 63... Rb3+ {[%clk 0:00:04.1]} 64. Kf4 {[%clk 0:00:03.9]} 64... Rb2
{[%clk 0:00:04.3]} 65. Kf3 {[%clk 0:00:04.4]} 65... Rb3+ {[%clk 0:00:04.6]} 66.
Kf2 {[%clk 0:00:05.1]} 66... Rb2 {[%clk 0:00:05.1]} 67. Ke3 {[%clk 0:00:03.9]}
67... Rb3+ {[%clk 0:00:05.3]} 68. Bd3 {[%clk 0:00:04.4]} 68... Rb2 {[%clk
0:00:05.4]} 69. Kf4 {[%clk 0:00:03.2]} 69... Rf2+ {[%clk 0:00:05.3]} 70. Ke3
{[%clk 0:00:03.4]} 70... Rg2 {[%clk 0:00:05.4]} 71. Kf3 {[%clk 0:00:03.5]} 71...
Rb2 {[%clk 0:00:05.1]} 72. Bc4 {[%clk 0:00:03.6]} 72... Rc2 {[%clk 0:00:05]} 73.
Be2 {[%clk 0:00:03.4]} 73... Rc3+ {[%clk 0:00:04.7]} 74. Kf2 {[%clk 0:00:03.8]}
74... Rb3 {[%clk 0:00:04.9]} 75. Bf3 {[%clk 0:00:04]} 75... Rb2+ {[%clk
0:00:04.6]} 76. Ke3 {[%clk 0:00:04.6]} 76... Rb3+ {[%clk 0:00:04.9]} 1/2-1/2

[Event "Early-Titled-Tuesday-Blitz-August-29-2023"]
[Site "Chess.com"]
[Date "2023.08.29"]
[Round "9"]
[White "BogdanDeac"]
[Black "baki83"]
[Result "1-0"]
[WhiteElo "3015"]
[BlackElo "2837"]
[TimeControl "180+1"]
[EndTime "9:44:35 PDT"]
[Termination "BogdanDeac won on time"]

1. d4 {[%clk 0:03:00.9]} 1... d5 {[%clk 0:02:59.7]} 2. Bf4 {[%clk 0:03:01.1]}
2... Nf6 {[%clk 0:02:58.7]} 3. e3 {[%clk 0:03:01.7]} 3... Bf5 {[%clk 0:02:57.5]}
4. c4 {[%clk 0:02:59.6]} 4... e6 {[%clk 0:02:56.3]} 5. Nc3 {[%clk 0:02:59.9]}
5... c6 {[%clk 0:02:49.1]} 6. Qb3 {[%clk 0:02:59.2]} 6... Qc8 {[%clk 0:02:29]}
7. Rc1 {[%clk 0:02:56.9]} 7... dxc4 {[%clk 0:02:26.2]} 8. Bxc4 {[%clk
0:02:55.4]} 8... Nbd7 {[%clk 0:02:25.4]} 9. Nf3 {[%clk 0:02:55.5]} 9... Be7
{[%clk 0:02:25.2]} 10. O-O {[%clk 0:02:48]} 10... O-O {[%clk 0:02:25.2]} 11. h3
{[%clk 0:02:48.5]} 11... Ne4 {[%clk 0:02:22.7]} 12. Ne2 {[%clk 0:02:18.4]} 12...
Rd8 {[%clk 0:02:11.1]} 13. Rfd1 {[%clk 0:02:07.3]} 13... Bg6 {[%clk 0:01:45.6]}
14. Bh2 {[%clk 0:01:45.9]} 14... Bd6 {[%clk 0:01:35.3]} 15. Nf4 {[%clk
0:01:33.1]} 15... Nb6 {[%clk 0:01:25]} 16. Bd3 {[%clk 0:00:40.5]} 16... Nf6
{[%clk 0:01:24.4]} 17. Nxg6 {[%clk 0:00:26.7]} 17... Bxh2+ {[%clk 0:01:23.6]}
18. Kxh2 {[%clk 0:00:27.1]} 18... hxg6 {[%clk 0:01:24]} 19. e4 {[%clk
0:00:27.8]} 19... Qc7+ {[%clk 0:00:57.5]} 20. g3 {[%clk 0:00:28]} 20... Qe7
{[%clk 0:00:53.7]} 21. a4 {[%clk 0:00:23.4]} 21... Rab8 {[%clk 0:00:50.2]} 22.
Kg2 {[%clk 0:00:22.3]} 22... Nbd7 {[%clk 0:00:47.3]} 23. e5 {[%clk 0:00:20.5]}
23... Nd5 {[%clk 0:00:47.4]} 24. h4 {[%clk 0:00:19.2]} 24... c5 {[%clk
0:00:46.4]} 25. Be4 {[%clk 0:00:14.8]} 25... cxd4 {[%clk 0:00:40.9]} 26. Rxd4
{[%clk 0:00:13.4]} 26... Nc5 {[%clk 0:00:40.2]} 27. Qc2 {[%clk 0:00:04.5]} 27...
Nxe4 {[%clk 0:00:26]} 28. Qxe4 {[%clk 0:00:05.4]} 28... Rbc8 {[%clk 0:00:21.1]}
29. Rh1 {[%clk 0:00:05.6]} 29... Qc5 {[%clk 0:00:13.8]} 30. h5 {[%clk
0:00:05.6]} 30... gxh5 {[%clk 0:00:12.3]} 31. Rxh5 {[%clk 0:00:05.3]} 31... Qc2
{[%clk 0:00:12.4]} 32. Qxc2 {[%clk 0:00:04.8]} 32... Rxc2 {[%clk 0:00:11.8]} 33.
Rdh4 {[%clk 0:00:05.5]} 33... Kf8 {[%clk 0:00:11.6]} 34. Ng5 {[%clk 0:00:05.8]}
34... Ke7 {[%clk 0:00:09.2]} 35. Rh7 {[%clk 0:00:06.1]} 35... Ne3+ {[%clk
0:00:07.5]} 36. Kf3 {[%clk 0:00:05.7]} 36... Nf5 {[%clk 0:00:07.4]} 37. Rb4
{[%clk 0:00:05]} 37... b6 {[%clk 0:00:07.4]} 38. g4 {[%clk 0:00:05.1]} 38...
Nd4+ {[%clk 0:00:05.6]} 39. Ke3 {[%clk 0:00:04.4]} 39... Nc6 {[%clk 0:00:04.8]}
40. Re4 {[%clk 0:00:04.3]} 40... Rdd2 {[%clk 0:00:04.1]} 41. Rxg7 {[%clk
0:00:03.9]} 41... Re2+ {[%clk 0:00:04.4]} 42. Kd3 {[%clk 0:00:03.8]} 42... Red2+
{[%clk 0:00:04.8]} 43. Ke3 {[%clk 0:00:04.2]} 43... Re2+ {[%clk 0:00:05.2]} 44.
Kf4 {[%clk 0:00:04.3]} 44... Rxf2+ {[%clk 0:00:05.2]} 45. Kg3 {[%clk 0:00:04.8]}
45... Rf1 {[%clk 0:00:03.8]} 46. Rf4 {[%clk 0:00:04]} 46... Rxf4 {[%clk
0:00:03.5]} 47. Kxf4 {[%clk 0:00:04.9]} 47... Rf2+ {[%clk 0:00:03.6]} 48. Ke3
{[%clk 0:00:05.2]} 48... Rf1 {[%clk 0:00:03.8]} 49. Ke2 {[%clk 0:00:04.8]} 49...
Rf4 {[%clk 0:00:03.5]} 50. Ke3 {[%clk 0:00:05.2]} 50... Rf1 {[%clk 0:00:02.7]}
51. Nf3 {[%clk 0:00:05.4]} 51... Kf8 {[%clk 0:00:01.7]} 52. Rh7 {[%clk
0:00:05.6]} 52... Nb4 {[%clk 0:00:02.1]} 53. g5 {[%clk 0:00:05.4]} 53... Nd5+
{[%clk 0:00:01.8]} 54. Ke2 {[%clk 0:00:05.9]} 54... Rb1 {[%clk 0:00:01.4]} 55.
Kf2 {[%clk 0:00:04.9]} 55... Rxb2+ {[%clk 0:00:01.2]} 56. Kg3 {[%clk 0:00:05.6]}
56... Rb4 {[%clk 0:00:01.9]} 57. g6 {[%clk 0:00:05.8]} 57... fxg6 {[%clk
0:00:02.2]} 58. Ng5 {[%clk 0:00:06.1]} 58... Rb3+ {[%clk 0:00:01.4]} 59. Kg4
{[%clk 0:00:05.6]} 59... Rb4+ {[%clk 0:00:01.9]} 60. Kg3 {[%clk 0:00:06.1]}
60... Rb3+ {[%clk 0:00:02.5]} 61. Kf2 {[%clk 0:00:06.7]} 61... Rb2+ {[%clk
0:00:02.4]} 62. Kf3 {[%clk 0:00:07]} 62... Rb3+ {[%clk 0:00:02.8]} 63. Kf2
{[%clk 0:00:07.2]} 63... Rb2+ {[%clk 0:00:03.3]} 64. Ke1 {[%clk 0:00:07.8]}
64... Rb1+ {[%clk 0:00:03.7]} 65. Kd2 {[%clk 0:00:08]} 65... Rb4 {[%clk
0:00:03.4]} 66. Nxe6+ {[%clk 0:00:07.9]} 66... Ke8 {[%clk 0:00:03.9]} 67. Rxa7
{[%clk 0:00:08]} 67... Re4 {[%clk 0:00:02.6]} 68. Ng7+ {[%clk 0:00:07.9]} 68...
Kd8 {[%clk 0:00:01.8]} 69. e6 {[%clk 0:00:08.2]} 69... Nc7 {[%clk 0:00:01.4]}
70. Kd3 {[%clk 0:00:07.3]} 70... Re1 {[%clk 0:00:01.1]} 71. Kd2 {[%clk
0:00:07.6]} 1-0

[Event "Early-Titled-Tuesday-Blitz-August-29-2023"]
[Site "Chess.com"]
[Date "2023.08.29"]
[Round "9"]
[White "borocotoajua"]
[Black "kasun_bole"]
[Result "0-1"]
[WhiteElo "2475"]
[BlackElo "2357"]
[TimeControl "180+1"]
[EndTime "9:44:39 PDT"]
[Termination "kasun_bole won by resignation"]

1. d4 {[%clk 0:02:59.8]} 1... Nf6 {[%clk 0:02:57.9]} 2. Nf3 {[%clk 0:02:58.9]}
2... c5 {[%clk 0:02:58.2]} 3. d5 {[%clk 0:02:58.9]} 3... g6 {[%clk 0:02:57.3]}
4. c4 {[%clk 0:02:58.4]} 4... d6 {[%clk 0:02:57.6]} 5. Nc3 {[%clk 0:02:57.9]}
5... Bg7 {[%clk 0:02:58.5]} 6. g3 {[%clk 0:02:58.1]} 6... O-O {[%clk 0:02:59.4]}
7. Bg2 {[%clk 0:02:58.1]} 7... e6 {[%clk 0:02:57.8]} 8. O-O {[%clk 0:02:58]}
8... exd5 {[%clk 0:02:58]} 9. cxd5 {[%clk 0:02:58.9]} 9... a6 {[%clk 0:02:57.7]}
10. a4 {[%clk 0:02:58.4]} 10... Nbd7 {[%clk 0:02:58]} 11. Nd2 {[%clk 0:02:54.1]}
11... Rb8 {[%clk 0:02:56.2]} 12. Nc4 {[%clk 0:02:51.5]} 12... Qc7 {[%clk
0:02:53.9]} 13. Bf4 {[%clk 0:02:45.4]} 13... Ne8 {[%clk 0:02:49.9]} 14. a5
{[%clk 0:02:38.8]} 14... Ne5 {[%clk 0:02:46.6]} 15. Nxe5 {[%clk 0:02:36.2]}
15... dxe5 {[%clk 0:02:41.3]} 16. Bd2 {[%clk 0:02:31.8]} 16... Nd6 {[%clk
0:02:40.3]} 17. Qa4 {[%clk 0:02:23.9]} 17... Bd7 {[%clk 0:02:37.8]} 18. Qc2
{[%clk 0:02:08]} 18... Bf5 {[%clk 0:02:36.7]} 19. e4 {[%clk 0:02:07.2]} 19...
Bd7 {[%clk 0:02:36.5]} 20. f4 {[%clk 0:02:04.8]} 20... exf4 {[%clk 0:02:35.4]}
21. gxf4 {[%clk 0:02:01.6]} 21... Nb5 {[%clk 0:02:35.3]} 22. e5 {[%clk
0:01:55.2]} 22... Nd4 {[%clk 0:02:31.6]} 23. Qd3 {[%clk 0:01:53.1]} 23... Bf5
{[%clk 0:02:30.2]} 24. Qg3 {[%clk 0:01:47.6]} 24... b5 {[%clk 0:02:22.6]} 25. d6
{[%clk 0:01:35.1]} 25... Qd7 {[%clk 0:02:19.2]} 26. Rae1 {[%clk 0:01:23.1]}
26... b4 {[%clk 0:02:17.6]} 27. Nd5 {[%clk 0:01:23.3]} 27... Be6 {[%clk
0:02:17.5]} 28. Ne7+ {[%clk 0:01:14.5]} 28... Kh8 {[%clk 0:02:17.1]} 29. Be4
{[%clk 0:01:05.5]} 29... Rfe8 {[%clk 0:02:15.9]} 30. Be3 {[%clk 0:01:00.3]}
30... Rxe7 {[%clk 0:02:15.3]} 31. dxe7 {[%clk 0:01:00]} 31... Qxe7 {[%clk
0:02:16.2]} 32. Qf2 {[%clk 0:00:52.7]} 32... Nb3 {[%clk 0:02:13.1]} 33. Bc2
{[%clk 0:00:49.5]} 33... c4 {[%clk 0:02:11.1]} 34. f5 {[%clk 0:00:47.5]} 34...
gxf5 {[%clk 0:02:10.6]} 35. Bxf5 {[%clk 0:00:48.4]} 35... Nxa5 {[%clk
0:02:06.4]} 36. Be4 {[%clk 0:00:44]} 36... c3 {[%clk 0:02:03.3]} 37. bxc3 {[%clk
0:00:38]} 37... bxc3 {[%clk 0:02:03.1]} 38. Rb1 {[%clk 0:00:38.4]} 38... Rc8
{[%clk 0:02:01.4]} 39. Qg3 {[%clk 0:00:33.2]} 39... Nc4 {[%clk 0:01:58.9]} 40.
Bg5 {[%clk 0:00:33]} 40... Qc5+ {[%clk 0:01:57.7]} 41. Rf2 {[%clk 0:00:31.3]}
41... Nd2 {[%clk 0:01:47.7]} 42. Qh4 {[%clk 0:00:29]} 42... Nxe4 {[%clk
0:01:44.6]} 43. Qxe4 {[%clk 0:00:27.4]} 43... Qxe5 {[%clk 0:01:39.5]} 44. Qh4
{[%clk 0:00:23.8]} 44... Bf5 {[%clk 0:01:23.9]} 45. Rbf1 {[%clk 0:00:23.6]}
45... Bg6 {[%clk 0:01:23.3]} 46. Rf3 {[%clk 0:00:18.8]} 46... c2 {[%clk
0:01:21.7]} 47. Re1 {[%clk 0:00:19.1]} 47... Qc5+ {[%clk 0:01:13.1]} 48. Be3
{[%clk 0:00:17.1]} 48... Qc6 {[%clk 0:01:05.1]} 49. Rff1 {[%clk 0:00:16.2]}
49... a5 {[%clk 0:01:04.2]} 50. Bd4 {[%clk 0:00:16.6]} 50... a4 {[%clk
0:00:50.9]} 51. Bxg7+ {[%clk 0:00:16.3]} 51... Kxg7 {[%clk 0:00:50.9]} 52. Qd4+
{[%clk 0:00:17.2]} 52... Kg8 {[%clk 0:00:51.3]} 53. Rc1 {[%clk 0:00:17.4]} 53...
a3 {[%clk 0:00:50.7]} 54. Rfe1 {[%clk 0:00:13.7]} 54... a2 {[%clk 0:00:50.1]}
55. Qb2 {[%clk 0:00:11.4]} 55... Qc5+ {[%clk 0:00:47.3]} 56. Kg2 {[%clk
0:00:09.9]} 56... Qd5+ {[%clk 0:00:47.4]} 57. Kg1 {[%clk 0:00:10.3]} 57... Qg5+
{[%clk 0:00:42.8]} 58. Kh1 {[%clk 0:00:08.8]} 58... Qd5+ {[%clk 0:00:33.7]} 59.
Kg1 {[%clk 0:00:08.8]} 59... h5 {[%clk 0:00:29.4]} 60. Qa3 {[%clk 0:00:06.4]}
60... Qd4+ {[%clk 0:00:26]} 61. Kh1 {[%clk 0:00:06.1]} 61... Be4+ {[%clk
0:00:20.8]} 62. Rxe4 {[%clk 0:00:06.4]} 62... Qxe4+ {[%clk 0:00:20.9]} 63. Kg1
{[%clk 0:00:07.3]} 63... Qd4+ {[%clk 0:00:20.6]} 64. Kh1 {[%clk 0:00:07.5]}
64... Qe4+ {[%clk 0:00:15.7]} 65. Kg1 {[%clk 0:00:07.5]} 65... Rc6 {[%clk
0:00:15.6]} 66. Qa8+ {[%clk 0:00:04]} 66... Kg7 {[%clk 0:00:15.3]} 67. Kf2
{[%clk 0:00:03.9]} 67... Rf6+ {[%clk 0:00:14.7]} 68. Kg3 {[%clk 0:00:03.9]}
68... Qxa8 {[%clk 0:00:13.8]} 0-1

[Event "Early-Titled-Tuesday-Blitz-August-29-2023"]
[Site "Chess.com"]
[Date "2023.08.29"]
[Round "9"]
[White "cool64chess"]
[Black "Goryachkina"]
[Result "1-0"]
[WhiteElo "2539"]
[BlackElo "2633"]
[TimeControl "180+1"]
[EndTime "9:44:54 PDT"]
[Termination "cool64chess won on time"]

1. d4 {[%clk 0:03:00.9]} 1... Nf6 {[%clk 0:02:59.6]} 2. c4 {[%clk 0:03:01]} 2...
e6 {[%clk 0:02:59.7]} 3. Nc3 {[%clk 0:03:01.1]} 3... Bb4 {[%clk 0:02:59.2]} 4.
f3 {[%clk 0:03:01]} 4... d5 {[%clk 0:02:56.3]} 5. a3 {[%clk 0:03:01.1]} 5...
Bxc3+ {[%clk 0:02:55.8]} 6. bxc3 {[%clk 0:03:02]} 6... c5 {[%clk 0:02:51.2]} 7.
e3 {[%clk 0:03:02.1]} 7... O-O {[%clk 0:02:50.3]} 8. cxd5 {[%clk 0:03:02.1]}
8... exd5 {[%clk 0:02:50.2]} 9. Bd3 {[%clk 0:03:01.6]} 9... Re8 {[%clk
0:02:47.7]} 10. Ne2 {[%clk 0:03:01.7]} 10... b6 {[%clk 0:02:47.6]} 11. O-O
{[%clk 0:03:01.7]} 11... Ba6 {[%clk 0:02:47.2]} 12. Ra2 {[%clk 0:02:57.5]} 12...
Bxd3 {[%clk 0:02:42.9]} 13. Qxd3 {[%clk 0:02:58.4]} 13... Nbd7 {[%clk
0:02:29.5]} 14. Ng3 {[%clk 0:02:57.4]} 14... Nf8 {[%clk 0:02:06.2]} 15. e4
{[%clk 0:02:51.2]} 15... cxd4 {[%clk 0:01:57.1]} 16. cxd4 {[%clk 0:02:49.1]}
16... Rc8 {[%clk 0:01:42.6]} 17. e5 {[%clk 0:02:45.3]} 17... N6d7 {[%clk
0:01:42.2]} 18. Nf5 {[%clk 0:02:43.3]} 18... Re6 {[%clk 0:01:31]} 19. f4 {[%clk
0:02:39.9]} 19... Qc7 {[%clk 0:01:28.2]} 20. Nd6 {[%clk 0:02:02.7]} 20... Rxd6
{[%clk 0:01:22]} 21. exd6 {[%clk 0:02:03.6]} 21... Qxd6 {[%clk 0:01:22.1]} 22.
f5 {[%clk 0:02:03.5]} 22... Nf6 {[%clk 0:01:20.8]} 23. Bf4 {[%clk 0:02:00.1]}
23... Qd7 {[%clk 0:01:20.9]} 24. Be5 {[%clk 0:01:57.9]} 24... Ne4 {[%clk
0:01:18.5]} 25. f6 {[%clk 0:01:57.4]} 25... Rc3 {[%clk 0:01:12.1]} 26. Qd1
{[%clk 0:01:44.1]} 26... Ng6 {[%clk 0:01:11.6]} 27. fxg7 {[%clk 0:01:40.9]}
27... Qe6 {[%clk 0:00:56.2]} 28. Rc2 {[%clk 0:01:32.5]} 28... Nxe5 {[%clk
0:00:49.6]} 29. Rxc3 {[%clk 0:01:12.2]} 29... Nxc3 {[%clk 0:00:49.6]} 30. Qc2
{[%clk 0:01:11.9]} 30... Nf3+ {[%clk 0:00:44.3]} 31. gxf3 {[%clk 0:00:56.5]}
31... Ne2+ {[%clk 0:00:43.8]} 32. Kh1 {[%clk 0:00:46.5]} 32... Nxd4 {[%clk
0:00:44]} 33. Qg2 {[%clk 0:00:46.7]} 33... Nf5 {[%clk 0:00:42]} 34. Rg1 {[%clk
0:00:44]} 34... d4 {[%clk 0:00:36]} 35. Qd2 {[%clk 0:00:43.8]} 35... f6 {[%clk
0:00:16.4]} 36. Qf4 {[%clk 0:00:42.1]} 36... Qe5 {[%clk 0:00:12.9]} 37. Qe4
{[%clk 0:00:21.7]} 37... Qxe4 {[%clk 0:00:12.2]} 38. fxe4 {[%clk 0:00:22.2]}
38... Nxg7 {[%clk 0:00:12.6]} 39. Rc1 {[%clk 0:00:19.9]} 39... Ne6 {[%clk
0:00:12.5]} 40. Kg2 {[%clk 0:00:19.9]} 40... Nc5 {[%clk 0:00:12.6]} 41. Kf3
{[%clk 0:00:19.6]} 41... Kf7 {[%clk 0:00:12.5]} 42. Rd1 {[%clk 0:00:19.6]} 42...
d3 {[%clk 0:00:12.5]} 43. Ke3 {[%clk 0:00:19.5]} 43... Ke6 {[%clk 0:00:12]} 44.
Kd4 {[%clk 0:00:19.7]} 44... Kf7 {[%clk 0:00:08.3]} 45. e5 {[%clk 0:00:18.5]}
45... fxe5+ {[%clk 0:00:08.6]} 46. Kxe5 {[%clk 0:00:19.4]} 46... Ke7 {[%clk
0:00:08.5]} 47. Kd5 {[%clk 0:00:19.5]} 47... Kf7 {[%clk 0:00:07.3]} 48. h4
{[%clk 0:00:19.7]} 48... Kg6 {[%clk 0:00:07.3]} 49. Kd4 {[%clk 0:00:15.9]} 49...
Kh5 {[%clk 0:00:07.3]} 50. Kc3 {[%clk 0:00:16]} 50... h6 {[%clk 0:00:07]} 51.
Rh1 {[%clk 0:00:13.7]} 51... Kg4 {[%clk 0:00:06.9]} 52. Rg1+ {[%clk 0:00:13.1]}
52... Kxh4 {[%clk 0:00:07.2]} 53. Rg7 {[%clk 0:00:13.6]} 53... a5 {[%clk
0:00:05.5]} 54. Rg6 {[%clk 0:00:11.8]} 54... h5 {[%clk 0:00:05.9]} 55. Kd2
{[%clk 0:00:11.5]} 55... Kh3 {[%clk 0:00:03.2]} 56. Rxb6 {[%clk 0:00:10.8]}
56... Kg3 {[%clk 0:00:03.3]} 57. Rb5 {[%clk 0:00:09.8]} 57... Ne4+ {[%clk
0:00:03.2]} 58. Kxd3 {[%clk 0:00:09.9]} 58... Nf2+ {[%clk 0:00:03.8]} 59. Ke2
{[%clk 0:00:08.7]} 59... Ng4 {[%clk 0:00:02]} 60. Rxh5 {[%clk 0:00:07.8]} 60...
Kf4 {[%clk 0:00:01.9]} 61. Rxa5 {[%clk 0:00:07.3]} 61... Ne5 {[%clk 0:00:02.5]}
62. Rb5 {[%clk 0:00:05.5]} 62... Ke4 {[%clk 0:00:02.9]} 63. a4 {[%clk
0:00:05.7]} 63... Nc6 {[%clk 0:00:02.6]} 64. Kd2 {[%clk 0:00:03.5]} 64... Nd4
{[%clk 0:00:02]} 65. Rb4 {[%clk 0:00:02.8]} 65... Kd5 {[%clk 0:00:02.3]} 66. a5
{[%clk 0:00:02.7]} 66... Kc5 {[%clk 0:00:02.4]} 67. Rxd4 {[%clk 0:00:02]} 1-0